bitfinex-derivatives/quotes_BTCF0:USTF0_20241015
["timestamp","ask_amount","ask_price","bid_price","bid_amount"]
[1728959020206,0.0174,65913.0,65912.0,0.172]
[1728959023494,0.0104,65913.0,65912.0,0.62616]
[1728959023696,0.0034,65913.0,65912.0,0.62516]
[1728959024699,0.0024,65913.0,65912.0,0.62516]
[1728959024904,0.0044,65913.0,65912.0,0.62516]
[1728959026006,0.0054,65913.0,65912.0,0.62516]
[1728959026402,0.0034,65913.0,65912.0,1.22516]
[1728959026697,0.0004,65913.0,65912.0,0.62516]
[1728959029012,0.0004,65913.0,65912.0,0.17]
[1728959031213,0.2236,65922.0,65912.0,0.17]
[1728959031399,0.2236,65922.0,65921.0,0.0004]
[1728959033515,0.2326,65922.0,65921.0,0.0014]
[1728959034011,0.2236,65922.0,65921.0,0.0004]
[1728959034314,0.2406,65922.0,65921.0,0.0024]
[1728959034511,0.2406,65922.0,65921.0,0.04786921]
[1728959034815,0.2406,65922.0,65921.0,0.0024]
[1728959035818,0.3506,65922.0,65921.0,0.0024]
[1728959037108,0.3426,65922.0,65921.0,0.0014]
[1728959037413,0.3536,65922.0,65921.0,0.0024]
[1728959038808,0.3426,65922.0,65921.0,0.0014]
[1728959039008,0.3556,65922.0,65921.0,0.0024]
[1728959039415,0.3426,65922.0,65921.0,0.0014]
[1728959039603,0.3556,65922.0,65921.0,0.0024]
[1728959040017,0.3576,65922.0,65921.0,0.0024]
[1728959040620,0.3576,65922.0,65921.0,0.03032742]
[1728959040817,0.3576,65922.0,65921.0,0.07582576]
[1728959041815,0.3576,65922.0,65921.0,0.03032742]
[1728959044008,0.3576,65922.0,65921.0,0.07581299]
[1728959044214,0.3576,65922.0,65921.0,0.03032742]
[1728959045918,0.7184,65922.0,65921.0,0.03032742]
[1728959046219,0.8194076,65922.0,65921.0,0.03032742]
[1728959053324,0.81940628,65922.0,65921.0,0.03032742]
[1728959053920,0.45860628,65922.0,65921.0,0.03032742]
[1728959054120,0.3576,65922.0,65921.0,0.14596847]
[1728959061120,0.45860554,65922.0,65921.0,0.03032742]
[1728959065027,0.12300554,65922.0,65921.0,0.03032742]
[1728959065927,0.12100554,65922.0,65921.0,0.03032742]
[1728959067232,0.11200554,65922.0,65921.0,0.02932742]
[1728959067422,0.12100554,65922.0,65921.0,0.03032742]
[1728959068132,0.12200554,65922.0,65921.0,0.03032742]
[1728959069227,0.021,65922.0,65921.0,0.03032742]
[1728959076233,0.12200118,65922.0,65921.0,0.03032742]
[1728959078534,0.06757669,65922.0,65921.0,0.03032742]
[1728959078729,0.12200118,65922.0,65921.0,0.03032742]
[1728959084242,0.021,65922.0,65921.0,0.03032742]
[1728959090050,0.021,65922.0,65921.0,0.09100128]
[1728959093348,0.021,65922.0,65921.0,0.09100334]
[1728959093554,0.021,65922.0,65921.0,0.03032742]
[1728959095553,0.546657,65923.0,65921.0,0.02832742]
[1728959095851,0.546657,65923.0,65922.0,0.06109245]
[1728959096954,0.436657,65923.0,65922.0,0.06109245]
[1728959098457,0.445657,65923.0,65922.0,0.06109245]
[1728959098854,0.564657,65923.0,65922.0,0.0014]
[1728959099155,0.66666623,65923.0,65922.0,0.0024]
[1728959099352,0.075859,65921.0,65912.0,0.0106]
[1728959099551,0.075859,65921.0,65909.0,0.086473]
[1728959099552,0.16699866,65915.0,65909.0,0.086473]
[1728959099747,0.0465804,65914.0,65909.0,0.075873]
[1728959099952,0.0465804,65913.0,65909.0,0.075873]
[1728959100153,0.0465804,65912.0,65909.0,0.075873]
[1728959100353,0.0465804,65911.0,65909.0,0.075873]
[1728959100658,0.0465804,65910.0,65909.0,0.075873]
[1728959100854,0.16699866,65914.0,65909.0,0.075873]
[1728959101046,0.04658034,65913.0,65909.0,0.10262015]
[1728959101353,0.16699866,65910.0,65909.0,0.10262015]
[1728959101747,0.16699866,65910.0,65909.0,0.10662015]
[1728959101947,0.213579,65910.0,65909.0,0.10662015]
[1728959102151,0.323579,65910.0,65909.0,0.03074715]
[1728959102350,0.15658034,65910.0,65909.0,0.03474715]
[1728959102748,0.21101097,65910.0,65909.0,0.03474715]
[1728959102956,0.21101097,65910.0,65909.0,0.03274715]
[1728959103156,0.21101097,65910.0,65909.0,0.02874715]
[1728959103454,0.21101097,65910.0,65909.0,0.03074715]
[1728959104559,0.15658034,65910.0,65909.0,0.03074715]
[1728959104855,0.04658034,65910.0,65909.0,0.03074715]
[1728959105751,0.16686459,65910.0,65909.0,0.03074715]
[1728959105951,0.21344493,65910.0,65909.0,0.03074715]
[1728959106152,0.16686459,65910.0,65909.0,0.28715605]
[1728959115155,0.2568,65920.0,65909.0,0.28715605]
[1728959115356,0.2568,65920.0,65919.0,0.0004]
[1728959115559,0.2533,65920.0,65919.0,0.11604751]
[1728959117566,0.2623,65920.0,65919.0,0.11704751]
[1728959118270,0.2703,65920.0,65919.0,0.11804751]
[1728959120164,0.3803,65920.0,65919.0,0.11804751]
[1728959120568,0.3803,65920.0,65919.0,0.19385074]
[1728959121070,0.3803,65920.0,65919.0,0.07820323]
[1728959121253,0.075873,65909.0,65905.0,0.0076]
[1728959121458,0.075879,65904.0,65897.0,0.0035]
[1728959121670,0.87818354,65909.0,65896.0,0.02847547]
[1728959121671,0.11,65898.0,65896.0,0.02847547]
[1728959121964,0.04658354,65897.0,65894.0,0.07589]
[1728959122164,0.3608,65902.0,65890.0,0.47248]
[1728959122165,0.11,65895.0,65890.0,0.36248]
[1728959122371,0.11,65891.0,65890.0,0.3876854]
[1728959122564,0.15659289,65891.0,65890.0,0.3876854]
[1728959123070,0.04659289,65891.0,65890.0,0.3876854]
[1728959123459,0.04659289,65892.0,65890.0,0.3876854]
[1728959123763,0.04659289,65892.0,65891.0,0.1104]
[1728959124160,0.04659289,65894.0,65891.0,0.1104]
[1728959124366,0.3480976,65896.0,65891.0,0.1104]
[1728959124560,0.04659315,65895.0,65891.0,0.1104]
[1728959124863,0.04659315,65894.0,65891.0,0.1104]
[1728959125065,0.001,65892.0,65891.0,0.1104]
[1728959125265,0.04759315,65892.0,65891.0,0.1104]
[1728959125466,0.04659315,65892.0,65891.0,0.1104]
[1728959126360,0.04659315,65892.0,65891.0,0.2204]
[1728959127171,0.001,65896.0,65892.0,0.075893]
[1728959127472,0.0465906,65895.0,65893.0,0.075891]
[1728959127765,0.0465906,65894.0,65893.0,0.075891]
[1728959129166,0.001,65896.0,65893.0,0.075891]
[1728959129370,0.1703976,65902.0,65895.0,0.26212487]
[1728959129574,0.1668976,65902.0,65901.0,0.12101595]
[1728959129763,0.1668976,65902.0,65901.0,0.54380873]
[1728959131167,0.1708976,65902.0,65901.0,0.54380873]
[1728959131372,0.2808976,65902.0,65901.0,0.54380873]
[1728959131673,0.2958976,65902.0,65901.0,0.54580873]
[1728959131970,0.2958976,65902.0,65901.0,0.42479278]
[1728959132174,0.2858976,65902.0,65901.0,0.42379278]
[1728959132476,0.2968976,65902.0,65901.0,0.54580873]
[1728959133073,0.1868976,65902.0,65901.0,0.54580873]
[1728959133570,0.1868976,65902.0,65901.0,0.42479278]
[1728959133769,0.1868976,65902.0,65901.0,0.54578489]
[1728959133969,0.1848976,65902.0,65901.0,0.42479278]
[1728959134462,0.1848976,65902.0,65901.0,0.54577789]
[1728959134869,0.1778976,65902.0,65901.0,0.54477789]
[1728959135075,0.1878976,65902.0,65901.0,0.54577789]
[1728959135470,0.021,65902.0,65901.0,0.54577789]
[1728959135865,0.021,65902.0,65901.0,0.42479278]
[1728959136373,0.021,65902.0,65901.0,0.0024]
[1728959140168,0.021,65902.0,65901.0,0.0303453]
[1728959144274,0.021,65902.0,65901.0,0.14601591]
[1728959144477,0.021,65902.0,65901.0,0.14601567]
[1728959144781,0.021,65902.0,65901.0,0.0303453]
[1728959145073,0.021,65902.0,65901.0,0.14601627]
[1728959148681,0.021,65902.0,65901.0,0.14601491]
[1728959150180,0.021,65902.0,65901.0,0.23675187]
[1728959150594,0.131,65902.0,65901.0,0.23675187]
[1728959150781,0.131,65902.0,65901.0,0.14601491]
[1728959150971,0.4918,65902.0,65901.0,0.11806961]
[1728959151279,0.53839312,65902.0,65901.0,0.0024]
[1728959153575,0.53839333,65902.0,65901.0,0.0024]
[1728959153771,0.42839333,65902.0,65901.0,0.0024]
[1728959155674,0.42839333,65902.0,65901.0,0.1124]
[1728959156281,0.06759333,65902.0,65901.0,0.1124]
[1728959157586,0.021,65902.0,65901.0,0.1124]
[1728959159370,0.0751,65905.0,65901.0,0.64062413]
[1728959159371,0.05776235,65905.0,65901.0,0.64062413]
[1728959159584,0.05776235,65905.0,65904.0,0.0004]
[1728959159786,0.05776235,65905.0,65904.0,0.25685811]
[1728959160478,0.06776235,65905.0,65904.0,0.25685811]
[1728959160881,0.08176235,65905.0,65904.0,0.25785811]
[1728959161387,0.08476235,65905.0,65904.0,0.25885811]
[1728959162777,0.027,65905.0,65904.0,0.47885811]
[1728959162974,0.3608,65908.0,65907.0,0.075875]
[1728959163181,0.3608,65908.0,65907.0,0.49863222]
[1728959163388,0.3608,65908.0,65907.0,0.61975001]
[1728959163686,0.3608,65908.0,65907.0,0.33273311]
[1728959164288,0.3638,65908.0,65907.0,0.33373311]
[1728959164486,0.3638,65908.0,65907.0,0.33473311]
[1728959164882,0.3638,65908.0,65907.0,0.44473311]
[1728959166382,0.40738601,65908.0,65907.0,0.188275]
[1728959166578,0.04658601,65908.0,65907.0,0.188275]
[1728959166786,0.63318383,65915.0,65907.0,0.188275]
[1728959166982,0.04658434,65914.0,65907.0,0.1124]
[1728959167190,0.62258383,65915.0,65908.0,0.075874]
[1728959167191,0.04658434,65913.0,65908.0,0.075874]
[1728959167389,0.04658434,65912.0,65908.0,0.075874]
[1728959167589,0.04658434,65911.0,65908.0,0.075874]
[1728959167791,0.04658434,65910.0,65908.0,0.075874]
[1728959167993,0.04658434,65909.0,65908.0,0.075874]
[1728959168490,0.04658434,65914.0,65908.0,0.075874]
[1728959168692,0.04658434,65914.0,65913.0,0.0004]
[1728959168994,0.15658434,65914.0,65913.0,0.0004]
[1728959169689,0.075874,65908.0,65907.0,0.0024]
[1728959169896,0.075877,65906.0,65904.0,0.02827275]
[1728959170093,0.23828434,65905.0,65904.0,0.0004]
[1728959170394,0.29272418,65905.0,65904.0,0.0004]
[1728959170582,1.79272418,65905.0,65904.0,0.0004]
[1728959171191,1.79273196,65905.0,65904.0,0.0004]
[1728959171790,1.79273196,65905.0,65904.0,0.0014]
[1728959171987,1.90512698,65905.0,65904.0,0.0014]
[1728959172191,1.73829212,65905.0,65904.0,0.0014]
[1728959172390,1.73829212,65905.0,65904.0,0.02879157]
[1728959172587,1.73829212,65905.0,65904.0,0.0014]
[1728959172787,1.73929212,65905.0,65904.0,0.0024]
[1728959172987,1.81629212,65905.0,65904.0,0.0024]
[1728959173591,2.23053476,65905.0,65895.0,0.0004]
[1728959173785,2.23053476,65905.0,65890.0,0.0035]
[1728959173786,0.075893,65892.0,65890.0,0.0035]
[1728959174091,0.075893,65892.0,65884.0,0.083002]
[1728959174092,0.23248512,65892.0,65881.0,0.0035]
[1728959174281,0.185893,65892.0,65891.0,0.11610137]
[1728959174485,0.418293,65892.0,65891.0,0.11610137]
[1728959174886,0.418293,65892.0,65891.0,0.19176255]
[1728959175082,0.418293,65892.0,65891.0,0.19175968]
[1728959175495,0.418293,65892.0,65891.0,0.0004]
[1728959175798,0.308293,65892.0,65891.0,0.1917241]
[1728959176094,0.308293,65892.0,65891.0,0.0004]
[1728959176488,0.418293,65892.0,65891.0,0.0004]
[1728959177494,0.418293,65892.0,65891.0,0.0014]
[1728959178091,0.418293,65892.0,65891.0,0.07702431]
[1728959178395,0.418293,65892.0,65891.0,0.19272107]
[1728959178593,0.418293,65892.0,65891.0,0.07702431]
[1728959179097,0.3424,65892.0,65891.0,0.07702431]
[1728959179896,0.3424,65892.0,65891.0,0.0014]
[1728959180990,0.2324,65892.0,65891.0,0.0014]
[1728959181194,0.3424,65892.0,65891.0,0.0014]
[1728959181390,0.16768016,65892.0,65891.0,0.42386121]
[1728959182192,0.16768016,65892.0,65891.0,0.52962843]
[1728959182401,0.16768016,65892.0,65891.0,0.25791533]
[1728959182706,0.16768016,65892.0,65891.0,0.36368255]
[1728959182926,0.16768016,65892.0,65891.0,0.52962737]
[1728959183091,0.16768016,65892.0,65891.0,0.36368255]
[1728959183400,0.16768016,65892.0,65891.0,0.25791533]
[1728959188604,0.11,65892.0,65891.0,0.25791533]
[1728959189301,0.05682502,65892.0,65891.0,0.25791533]
[1728959189502,0.05682502,65892.0,65891.0,0.0014]
[1728959190803,0.3608,65896.0,65892.0,0.075892]
[1728959191102,0.11,65894.0,65892.0,0.075892]
[1728959193098,0.111,65894.0,65892.0,0.075892]
[1728959193605,0.111,65894.0,65891.0,0.0004]
[1728959193606,0.11,65893.0,65891.0,0.0004]
[1728959193808,0.1884,65893.0,65891.0,0.0004]
[1728959196403,0.2984,65893.0,65891.0,0.0004]
[1728959196800,0.1884,65893.0,65891.0,0.0004]
[1728959198011,0.0784,65893.0,65891.0,0.0004]
[1728959198196,0.11,65892.0,65891.0,0.04570872]
[1728959198395,0.11,65892.0,65891.0,0.0004]
[1728959199004,0.11,65892.0,65891.0,0.06091823]
[1728959199405,0.11,65892.0,65891.0,0.0004]
[1728959203507,0.185893,65892.0,65891.0,0.0004]
[1728959203915,0.185893,65892.0,65891.0,0.06102469]
[1728959204207,0.185893,65892.0,65891.0,0.0004]
[1728959205208,0.185893,65892.0,65891.0,0.06101973]
[1728959206416,0.185893,65892.0,65891.0,0.0004]
[1728959208413,0.185893,65892.0,65891.0,0.06101103]
[1728959209510,0.185893,65892.0,65891.0,0.0004]
[1728959210915,0.21263569,65892.0,65891.0,0.0004]
[1728959211523,0.31369759,65892.0,65891.0,0.0004]
[1728959213025,0.21263569,65892.0,65891.0,0.0004]
[1728959216818,0.25924116,65892.0,65891.0,0.0004]
[1728959219525,0.21263569,65892.0,65891.0,0.0004]
[1728959220525,0.21263569,65892.0,65891.0,0.04584062]
[1728959221332,0.21263569,65892.0,65891.0,0.0004]
[1728959221914,0.10263569,65892.0,65891.0,0.0004]
[1728959222113,0.21263569,65892.0,65891.0,0.04584062]
[1728959222330,0.185893,65892.0,65891.0,0.0004]
[1728959222623,0.185893,65892.0,65891.0,0.04585477]
[1728959223534,0.185893,65892.0,65891.0,0.0004]
[1728959224326,0.185893,65892.0,65891.0,0.04586144]
[1728959225322,0.185893,65892.0,65891.0,0.0004]
[1728959225519,0.185893,65892.0,65891.0,0.04585836]
[1728959226624,0.28695638,65892.0,65891.0,0.0004]
[1728959227726,0.28695571,65892.0,65891.0,0.0004]
[1728959232125,1.78695571,65892.0,65891.0,0.0004]
[1728959232626,1.78695832,65892.0,65891.0,0.0004]
[1728959233627,1.685893,65892.0,65891.0,0.0004]
[1728959234836,2.407493,65892.0,65891.0,0.0004]
[1728959235239,1.685893,65892.0,65891.0,0.0004]
[1728959235535,2.407493,65892.0,65891.0,0.0004]
[1728959238033,2.411493,65892.0,65891.0,0.0004]
[1728959240837,2.411493,65892.0,65890.0,0.04545836]
[1728959241632,0.10106706,65891.0,65881.0,0.0035]
[1728959241836,0.10106706,65891.0,65856.0,0.0082]
[1728959241837,0.4708,65882.0,65879.0,0.0773]
[1728959242036,0.15184046,65880.0,65879.0,0.10473711]
[1728959242238,0.19844753,65880.0,65879.0,0.10473711]
[1728959243532,0.04660707,65880.0,65879.0,0.10473711]
[1728959244241,0.15184046,65880.0,65879.0,0.10473711]
[1728959244442,0.04660707,65880.0,65879.0,0.10473711]
[1728959244638,0.04660707,65880.0,65879.0,0.11073711]
[1728959244838,0.15184046,65880.0,65879.0,0.11073711]
[1728959245247,0.15184046,65880.0,65879.0,0.11773711]
[1728959245248,0.15284046,65880.0,65879.0,0.11773711]
[1728959245436,0.19944753,65880.0,65879.0,0.11773711]
[1728959246051,0.04760707,65880.0,65879.0,0.11773711]
[1728959248249,0.001,65880.0,65879.0,1.17309711]
[1728959248556,0.16702937,65888.0,65879.0,1.17309711]
[1728959248557,0.16702937,65891.0,65888.0,0.075897]
[1728959248761,0.151821,65899.0,65889.0,0.45532]
[1728959248972,0.151821,65899.0,65888.0,1.12435093]
[1728959248973,0.029121,65899.0,65898.0,0.0004]
[1728959249262,0.3608,65906.0,65898.0,0.25689088]
[1728959249446,0.3608,65906.0,65905.0,0.0004]
[1728959249697,0.3608,65906.0,65905.0,0.1160839]
[1728959250260,0.3608,65906.0,65905.0,0.20688702]
[1728959250674,0.3608,65906.0,65905.0,0.1160839]
[1728959250870,0.3698,65906.0,65905.0,0.1170839]
[1728959251265,0.3698,65906.0,65905.0,0.1180839]
[1728959251460,0.3698,65906.0,65905.0,0.1458898]
[1728959251868,0.3698,65906.0,65905.0,0.14588205]
[1728959256446,0.3698,65906.0,65905.0,0.11807615]
[1728959256654,0.47083042,65906.0,65905.0,0.0024]
[1728959257352,0.42424025,65906.0,65905.0,0.0024]
[1728959257657,0.47083057,65906.0,65905.0,0.0024]
[1728959263659,0.3698,65906.0,65905.0,0.0024]
[1728959263964,0.3698,65906.0,65905.0,0.0763]
[1728959265556,0.009,65906.0,65905.0,0.5315]
[1728959267063,0.009,65906.0,65905.0,0.0763]
[1728959275970,0.009,65906.0,65905.0,0.0024]
[1728959275971,0.3698,65906.0,65905.0,0.0024]
[1728959276180,0.4798,65906.0,65905.0,0.0024]
[1728959277771,0.3698,65906.0,65905.0,0.0024]
[1728959278770,0.4708315,65906.0,65905.0,0.0024]
[1728959280674,0.47083148,65906.0,65905.0,0.0024]
[1728959283680,0.41639065,65906.0,65905.0,0.0024]
[1728959284476,0.41638819,65906.0,65905.0,0.0024]
[1728959286875,0.3698,65906.0,65905.0,0.11806592]
[1728959287074,0.009,65906.0,65905.0,0.11806592]
[1728959289175,0.009,65906.0,65905.0,0.11806594]
[1728959293385,0.009,65906.0,65905.0,0.20886906]
[1728959293589,0.009,65906.0,65905.0,0.11806594]
[1728959293794,0.11,65911.0,65905.0,0.0024]
[1728959293987,0.11,65911.0,65910.0,0.0004]
[1728959295195,0.119,65911.0,65910.0,0.0610591]
[1728959295582,0.119,65911.0,65910.0,0.0620591]
[1728959295779,0.119,65911.0,65910.0,0.0014]
[1728959295991,0.119,65911.0,65910.0,0.0024]
[1728959296492,0.009,65911.0,65910.0,0.0024]
[1728959298929,0.009,65911.0,65910.0,0.03041859]
[1728959299130,0.009,65911.0,65910.0,0.0024]
[1728959301814,0.0555865,65911.0,65910.0,0.0024]
[1728959302324,0.1655865,65911.0,65910.0,0.0024]
[1728959302717,0.22002246,65911.0,65910.0,0.0024]
[1728959304211,0.22002246,65911.0,65898.0,0.0004]
[1728959304212,0.69082818,65911.0,65898.0,0.0004]
[1728959304423,0.075883,65900.0,65899.0,0.0106]
[1728959304627,0.3424695,65900.0,65898.0,0.0004]
[1728959304809,2.02337662,65899.0,65898.0,0.0004]
[1728959305009,2.19566858,65899.0,65898.0,0.0004]
[1728959305207,1.99892014,65899.0,65898.0,0.0004]
[1728959305407,1.88892014,65899.0,65898.0,0.0004]
[1728959305609,1.90251318,65899.0,65898.0,0.0004]
[1728959305801,1.96481608,65899.0,65898.0,0.0004]
[1728959306205,1.90251318,65899.0,65898.0,0.0004]
[1728959306603,2.01251318,65899.0,65898.0,0.0004]
[1728959307111,1.90451318,65899.0,65898.0,0.0004]
[1728959307507,1.90551318,65899.0,65898.0,0.0014]
[1728959308007,1.90351318,65899.0,65898.0,0.0014]
[1728959308207,1.90651318,65899.0,65898.0,0.0024]
[1728959308816,1.805485,65899.0,65898.0,0.0024]
[1728959311016,2.166285,65899.0,65898.0,0.0024]
[1728959311314,2.166285,65899.0,65898.0,0.06297857]
[1728959312914,2.276285,65899.0,65898.0,0.06297857]
[1728959313115,2.276285,65899.0,65898.0,0.0024]
[1728959313312,2.276285,65899.0,65898.0,0.04782212]
[1728959313610,2.276285,65899.0,65898.0,0.0024]
[1728959314010,2.276285,65899.0,65898.0,0.04782212]
[1728959314217,2.276285,65899.0,65898.0,0.0024]
[1728959317017,2.32288652,65899.0,65898.0,0.0024]
[1728959317720,2.32288647,65899.0,65898.0,0.0024]
[1728959318023,2.32288669,65899.0,65898.0,0.0024]
[1728959318412,2.32288609,65899.0,65898.0,0.0024]
[1728959323119,1.96208609,65899.0,65898.0,0.0024]
[1728959323310,2.32288481,65899.0,65898.0,0.0024]
[1728959323919,2.276285,65899.0,65898.0,0.0024]
[1728959331921,2.32288558,65899.0,65898.0,0.0024]
[1728959335628,2.24700058,65899.0,65898.0,0.0024]
[1728959337225,2.17190058,65899.0,65898.0,0.0024]
[1728959337625,2.22635099,65899.0,65898.0,0.0024]
[1728959338127,2.22634885,65899.0,65898.0,0.0024]
[1728959338829,2.11634885,65899.0,65898.0,0.078286]
[1728959339129,2.0153,65899.0,65898.0,0.078286]
[1728959341127,2.1253,65899.0,65898.0,0.078286]
[1728959343838,2.0153,65899.0,65898.0,0.078286]
[1728959344535,2.0153,65899.0,65898.0,0.12370812]
[1728959344735,2.0153,65899.0,65898.0,0.078286]
[1728959345234,2.0153,65899.0,65898.0,0.12370812]
[1728959346442,1.614,65899.0,65898.0,0.13886457]
[1728959346639,1.9748,65899.0,65898.0,0.13886457]
[1728959346839,1.9748,65899.0,65898.0,0.078286]
[1728959347140,2.13813452,65899.0,65898.0,0.078286]
[1728959347840,1.77733452,65899.0,65898.0,0.078286]
[1728959351439,1.71503894,65899.0,65898.0,0.078286]
[1728959353237,1.79092394,65899.0,65898.0,0.078286]
[1728959354146,1.689885,65899.0,65898.0,0.078286]
[1728959356852,2.050685,65899.0,65898.0,0.078286]
[1728959365060,2.050685,65899.0,65898.0,0.0024]
[1728959366559,2.160685,65899.0,65898.0,0.0024]
[1728959369950,2.160685,65899.0,65898.0,0.002]
[1728959372058,2.050685,65899.0,65898.0,0.002]
[1728959372653,2.20728358,65899.0,65898.0,0.002]
[1728959374061,2.20728358,65899.0,65892.0,0.086493]
[1728959374062,0.075891,65893.0,65892.0,0.0106]
[1728959374264,0.656691,65893.0,65890.0,0.02723379]
[1728959374457,0.656691,65893.0,65889.0,0.075896]
[1728959374657,0.11,65890.0,65889.0,0.075896]
[1728959375248,0.11,65890.0,65889.0,0.10363136]
[1728959376166,0.11,65890.0,65889.0,0.10563136]
[1728959377068,0.11,65890.0,65889.0,0.18143225]
[1728959377260,0.11,65890.0,65889.0,0.10563136]
[1728959377562,0.11,65890.0,65889.0,0.002]
[1728959377563,0.186895,65890.0,65889.0,0.002]
[1728959377761,0.343495,65890.0,65889.0,0.002]
[1728959378659,0.2676,65890.0,65884.0,0.02724486]
[1728959378964,0.546701,65885.0,65883.0,0.07580089]
[1728959379151,0.075903,65884.0,65883.0,0.07580089]
[1728959379653,0.3608,65885.0,65884.0,0.075902]
[1728959379859,0.4708,65885.0,65884.0,0.15217954]
[1728959380256,0.4708,65885.0,65884.0,0.076302]
[1728959381260,0.4708,65885.0,65884.0,0.15617954]
[1728959381760,0.546701,65885.0,65884.0,0.15717954]
[1728959381965,0.546701,65885.0,65884.0,0.26888516]
[1728959382167,0.546701,65885.0,65884.0,0.27286637]
[1728959382368,0.546701,65885.0,65884.0,0.272865]
[1728959382570,0.546701,65885.0,65884.0,0.15715938]
[1728959382769,0.546701,65885.0,65884.0,0.0054]
[1728959387182,0.185901,65885.0,65884.0,0.081302]
[1728959392572,0.185901,65885.0,65884.0,0.0054]
[1728959392970,0.372901,65885.0,65884.0,0.0054]
[1728959393566,0.40005945,65885.0,65884.0,0.0054]
[1728959394278,0.40405945,65885.0,65884.0,0.06107831]
[1728959394475,0.40405945,65885.0,65884.0,0.0004]
[1728959395980,0.40405945,65885.0,65884.0,0.04590517]
[1728959396178,0.40405945,65885.0,65884.0,0.0004]
[1728959397183,0.40305945,65885.0,65884.0,0.0004]
[1728959397476,0.40605945,65885.0,65884.0,0.0004]
[1728959397677,0.40305945,65885.0,65884.0,0.0004]
[1728959397884,0.41005945,65885.0,65884.0,0.0014]
[1728959400088,0.45667105,65885.0,65884.0,0.0014]
[1728959400284,0.41005945,65885.0,65884.0,0.0014]
[1728959402078,0.45667121,65885.0,65884.0,0.0014]
[1728959402588,0.07591,65877.0,65876.0,0.0106]
[1728959402783,0.075918,65870.0,65869.0,0.03760222]
[1728959402981,0.5808,65870.0,65865.0,0.438524]
[1728959403180,0.075919,65869.0,65865.0,0.438524]
[1728959403379,0.075919,65869.0,65867.0,0.1802861]
[1728959404279,0.11,65868.0,65867.0,0.2562071]
[1728959404774,0.11,65868.0,65867.0,0.2612071]
[1728959405178,0.11,65868.0,65867.0,0.2652071]
[1728959406185,0.18592,65868.0,65867.0,0.2652071]
[1728959406690,0.18692,65868.0,65867.0,0.2662071]
[1728959407185,0.09573219,65868.0,65867.0,0.38193964]
[1728959407391,0.09573219,65868.0,65867.0,0.47287895]
[1728959407705,0.64245219,65868.0,65867.0,0.01]
[1728959408488,0.43672,65868.0,65867.0,0.0706105]
[1728959408784,0.54672,65868.0,65867.0,0.01]
[1728959408986,0.54672,65868.0,65867.0,0.006]
[1728959409788,0.4708,65868.0,65865.0,0.0606105]
[1728959409988,0.4708,65868.0,65864.0,0.075925]
[1728959409989,0.3608,65868.0,65867.0,0.186921]
[1728959410183,0.3608,65868.0,65867.0,0.26270752]
[1728959410495,0.3608,65868.0,65867.0,0.37838098]
[1728959410687,0.3678,65868.0,65867.0,0.30265498]
[1728959411086,0.3728,65868.0,65867.0,0.30265498]
[1728959411290,0.3728,65868.0,65867.0,0.19265498]
[1728959411591,0.3728,65868.0,65867.0,0.19165498]
[1728959411592,0.3658,65868.0,65867.0,0.19165498]
[1728959411795,0.3698,65868.0,65867.0,0.19165498]
[1728959411989,0.009,65868.0,65867.0,0.19165498]
[1728959412390,0.012,65868.0,65867.0,0.19265498]
[1728959412591,0.44872,65868.0,65867.0,0.20767329]
[1728959412888,0.55872,65868.0,65867.0,0.11673529]
[1728959413088,0.075926,65863.0,65862.0,0.07573812]
[1728959413289,0.075927,65862.0,65861.0,0.07573812]
[1728959413490,0.11,65862.0,65860.0,0.07573812]
[1728959413690,0.185928,65861.0,65860.0,0.07573812]
[1728959413884,0.185928,65861.0,65856.0,0.16687331]
[1728959413885,0.07593,65860.0,65859.0,0.07573812]
[1728959414101,0.18593,65860.0,65859.0,0.07573812]
[1728959414288,0.05679812,65860.0,65859.0,0.14088998]
[1728959415099,0.05679812,65860.0,65859.0,0.14188998]
[1728959415897,0.25593,65860.0,65859.0,0.14188998]
[1728959416198,0.25593,65860.0,65859.0,0.14488998]
[1728959417699,0.25593,65860.0,65859.0,0.004]
[1728959418092,0.25593,65860.0,65859.0,0.09485089]
[1728959419394,0.25593,65860.0,65859.0,0.004]
[1728959420695,0.25593,65860.0,65859.0,0.09486886]
[1728959420900,0.25593,65860.0,65859.0,0.004]
[1728959421089,0.25593,65860.0,65859.0,0.09486898]
[1728959421290,0.25593,65860.0,65859.0,0.004]
[1728959424997,0.07593,65860.0,65859.0,0.004]
[1728959427105,0.25593,65860.0,65859.0,0.004]
[1728959428003,0.25593,65860.0,65859.0,0.079931]
[1728959429402,0.25593,65860.0,65859.0,0.19567912]
[1728959431202,0.18,65860.0,65859.0,0.19567912]
[1728959432903,0.18,65860.0,65859.0,0.19568109]
[1728959435304,0.18,65860.0,65859.0,0.2865628]
[1728959435912,0.00076,65862.0,65861.0,0.075928]
[1728959436213,0.3608,65863.0,65862.0,0.075927]
[1728959436408,0.3608,65863.0,65862.0,0.19207709]
[1728959437213,0.26200276,65863.0,65862.0,0.33295783]
[1728959437414,0.18,65864.0,65862.0,0.33295783]
[1728959437713,0.18,65864.0,65863.0,0.25703083]
[1728959437908,0.11,65864.0,65863.0,0.11615009]
[1728959438113,0.258125,65864.0,65863.0,0.11615009]
[1728959439011,0.261125,65864.0,65863.0,0.11615009]
[1728959439412,0.261125,65864.0,65863.0,0.11614456]
[1728959439612,0.262125,65864.0,65863.0,0.11614456]
[1728959444312,0.262125,65864.0,65863.0,0.0004]
[1728959449112,0.262125,65864.0,65863.0,0.076326]
[1728959449417,0.189925,65864.0,65863.0,0.076326]
[1728959451117,0.23654491,65864.0,65863.0,0.076326]
[1728959451325,0.23654491,65864.0,65863.0,0.33295166]
[1728959451326,0.189925,65864.0,65863.0,0.33295166]
[1728959451823,1.689925,65864.0,65863.0,0.33295166]
[1728959452311,1.65192609,65864.0,65863.0,0.33295166]
[1728959452713,1.504,65864.0,65863.0,0.33295166]
[1728959452906,0.004,65864.0,65863.0,0.33295166]
[1728959457424,0.004,65864.0,65863.0,0.33293648]